[Event "Titled Tuesday Blitz March 15 Late 2022"]
[White "Mekhitarian, Krikor Sevag"]
[Black "Seul, Georg"]
[WhiteFideId "2107660"]
[BlackFideId "4601653"]
[WhiteElo "2598"]
[BlackElo "2271"]
[Result "1-0"]
[Round "08"]
[TimeControl "180+1"]
[Date "2022.03.15"]
[WhiteClock "0:01:19"]
[BlackClock "0:00:21"]

1. e4 {[%clk 0:03:00]}  c6 {[%clk 0:02:59]} 2. d4 {[%clk 0:02:58]}  d5 {[%clk 0:02:59]} 3. f3 {[%clk 0:02:57]}  e6 {[%clk 0:02:58]} 4. Nc3 {[%clk 0:02:56]}  Bb4 {[%clk 0:02:58]} 5. Bd2 {[%clk 0:02:54]}  Ne7 {[%clk 0:02:51]} 6. a3 {[%clk 0:02:54]}  Ba5 {[%clk 0:02:47]} 7. Bd3 {[%clk 0:02:49]}  Nd7 {[%clk 0:02:44]} 8. Nge2 {[%clk 0:02:49]}  O-O {[%clk 0:02:40]} 9. O-O {[%clk 0:02:48]}  dxe4 {[%clk 0:02:33]} 10. Nxe4 {[%clk 0:02:45]}  Bb6 {[%clk 0:02:16]} 11. Kh1 {[%clk 0:02:41]}  Nf5 {[%clk 0:02:10]} 12. c3 {[%clk 0:02:40]}  c5 {[%clk 0:02:02]} 13. dxc5 {[%clk 0:02:34]}  Nxc5 {[%clk 0:02:02]} 14. Nxc5 {[%clk 0:02:33]}  Bxc5 {[%clk 0:02:01]} 15. Bxf5 {[%clk 0:02:28]}  exf5 {[%clk 0:02:01]} 16. Be1 {[%clk 0:02:12]}  Be6 {[%clk 0:01:58]} 17. Bf2 {[%clk 0:02:03]}  Bd6 {[%clk 0:01:29]} 18. Bg3 {[%clk 0:01:58]}  Bxg3 {[%clk 0:01:24]} 19. hxg3 {[%clk 0:01:53]}  Bc4 {[%clk 0:01:23]} 20. Re1 {[%clk 0:01:48]}  Bxe2 {[%clk 0:01:16]} 21. Qxd8 {[%clk 0:01:45]}  Raxd8 {[%clk 0:01:14]} 22. Rxe2 {[%clk 0:01:45]}  Rfe8 {[%clk 0:01:13]} 23. Rae1 {[%clk 0:01:43]}  Rxe2 {[%clk 0:01:12]} 24. Rxe2 {[%clk 0:01:44]}  g6 {[%clk 0:01:12]} 25. Kg1 {[%clk 0:01:44]}  b5 {[%clk 0:01:10]} 26. Kf2 {[%clk 0:01:44]}  Kg7 {[%clk 0:01:08]} 27. Ke1 {[%clk 0:01:41]}  Kf6 {[%clk 0:01:07]} 28. Rd2 {[%clk 0:01:42]}  Re8+ {[%clk 0:01:07]} 29. Kf2 {[%clk 0:01:42]}  Re6 {[%clk 0:01:01]} 30. Rd7 {[%clk 0:01:40]}  a6 {[%clk 0:01:01]} 31. Rd4 {[%clk 0:01:39]}  g5 {[%clk 0:01:00]} 32. a4 {[%clk 0:01:38]}  bxa4 {[%clk 0:00:59]} 33. Rxa4 {[%clk 0:01:38]}  Rb6 {[%clk 0:00:58]} 34. b4 {[%clk 0:01:38]}  Rc6 {[%clk 0:00:58]} 35. Ra3 {[%clk 0:01:38]}  h5 {[%clk 0:00:58]} 36. Ke3 {[%clk 0:01:37]}  Re6+ {[%clk 0:00:48]} 37. Kd4 {[%clk 0:01:34]}  h4 {[%clk 0:00:41]} 38. gxh4 {[%clk 0:01:33]}  gxh4 {[%clk 0:00:42]} 39. c4 {[%clk 0:01:33]}  Kg5 {[%clk 0:00:37]} 40. c5 {[%clk 0:01:23]}  Kf4 {[%clk 0:00:36]} 41. Kd5 {[%clk 0:01:24]}  Re1 {[%clk 0:00:30]} 42. Rxa6 {[%clk 0:01:23]}  Re2 {[%clk 0:00:26]} 43. Rh6 {[%clk 0:01:21]}  Kg5 {[%clk 0:00:22]} 44. Rh8 {[%clk 0:01:20]}  Kf4 {[%clk 0:00:21]} 45. Rxh4+ {[%clk 0:01:19]} 1-0


[Site "https://www.chess.com"]

[Event "Titled Tuesday Blitz March 15 Late 2022"]
[White "Mikhalsky, Vladimir"]
[Black "Petrova, Irina"]
[WhiteFideId "14144352"]
[BlackFideId "14124122"]
[WhiteElo "2301"]
[BlackElo "1993"]
[Result "0-1"]
[Round "08"]
[TimeControl "180+1"]
[Date "2022.03.16"]
[WhiteClock "0:00:18"]
[BlackClock "0:00:24"]

1. d4 {[%clk 0:02:56]}  d6 {[%clk 0:02:58]} 2. c4 {[%clk 0:02:56]}  e5 {[%clk 0:02:58]} 3. Nf3 {[%clk 0:02:54]}  e4 {[%clk 0:02:57]} 4. Nfd2 {[%clk 0:02:54]}  f5 {[%clk 0:02:57]} 5. Nc3 {[%clk 0:02:51]}  Nf6 {[%clk 0:02:57]} 6. e3 {[%clk 0:02:50]}  g6 {[%clk 0:02:55]} 7. b3 {[%clk 0:02:47]}  Bg7 {[%clk 0:02:55]} 8. Bb2 {[%clk 0:02:47]}  O-O {[%clk 0:02:55]} 9. Qc2 {[%clk 0:02:43]}  c6 {[%clk 0:02:54]} 10. d5 {[%clk 0:02:38]}  Na6 {[%clk 0:02:49]} 11. dxc6 {[%clk 0:02:27]}  bxc6 {[%clk 0:02:49]} 12. a3 {[%clk 0:02:25]}  Be6 {[%clk 0:02:43]} 13. b4 {[%clk 0:02:24]}  Nc7 {[%clk 0:02:39]} 14. Ne2 {[%clk 0:02:23]}  Qd7 {[%clk 0:02:27]} 15. Nf4 {[%clk 0:02:19]}  Bf7 {[%clk 0:02:25]} 16. h4 {[%clk 0:02:18]}  h6 {[%clk 0:02:16]} 17. Be2 {[%clk 0:02:17]}  Ne6 {[%clk 0:02:12]} 18. g3 {[%clk 0:02:05]}  Nxf4 {[%clk 0:02:10]} 19. gxf4 {[%clk 0:02:05]}  h5 {[%clk 0:02:05]} 20. Nb3 {[%clk 0:01:42]}  Kh7 {[%clk 0:01:40]} 21. Rg1 {[%clk 0:01:32]}  Ng4 {[%clk 0:01:20]} 22. Bxg4 {[%clk 0:01:31]}  hxg4 {[%clk 0:01:15]} 23. Kf1 {[%clk 0:01:23]}  Bxb2 {[%clk 0:01:13]} 24. Qxb2 {[%clk 0:01:23]}  Bxc4+ {[%clk 0:01:13]} 25. Kg2 {[%clk 0:01:23]}  Bxb3 {[%clk 0:01:12]} 26. Qxb3 {[%clk 0:01:23]}  d5 {[%clk 0:01:12]} 27. Rh1 {[%clk 0:01:07]}  a5 {[%clk 0:01:10]} 28. h5 {[%clk 0:01:06]}  axb4 {[%clk 0:01:04]} 29. Qxb4 {[%clk 0:00:53]}  g5 {[%clk 0:01:02]} 30. fxg5 {[%clk 0:00:51]}  f4 {[%clk 0:01:02]} 31. Qd4 {[%clk 0:00:44]}  fxe3 {[%clk 0:00:53]} 32. fxe3 {[%clk 0:00:40]}  Rf3 {[%clk 0:00:48]} 33. Raf1 {[%clk 0:00:35]}  Qd6 {[%clk 0:00:45]} 34. Rxf3 {[%clk 0:00:29]}  exf3+ {[%clk 0:00:41]} 35. Kf2 {[%clk 0:00:28]}  g3+ {[%clk 0:00:37]} 36. Kxf3 {[%clk 0:00:24]}  Rf8+ {[%clk 0:00:38]} 37. Kg2 {[%clk 0:00:20]}  Rf2+ {[%clk 0:00:37]} 38. Kh3 {[%clk 0:00:19]}  g2 {[%clk 0:00:27]} 39. Rg1 {[%clk 0:00:18]}  Rf3+ {[%clk 0:00:25]} 40. Kg4 {[%clk 0:00:18]}  Qg3# {[%clk 0:00:24]} 0-1


[Site "https://www.chess.com"]

[Event "Titled Tuesday Blitz March 15 Late 2022"]
[White "Niemann, Hans Moke"]
[Black "Tari, Aryan"]
[WhiteFideId "2093596"]
[BlackFideId "1510045"]
[WhiteElo "2632"]
[BlackElo "2567"]
[Result "1-0"]
[Round "08"]
[TimeControl "180+1"]
[Date "2022.03.15"]
[WhiteClock "0:01:05"]
[BlackClock "0:00:28"]

1. d4 {[%clk 0:02:58]}  d5 {[%clk 0:02:55]} 2. Nc3 {[%clk 0:02:58]}  Nf6 {[%clk 0:02:53]} 3. Bf4 {[%clk 0:02:59]}  a6 {[%clk 0:02:47]} 4. e3 {[%clk 0:02:58]}  e6 {[%clk 0:02:42]} 5. g4 {[%clk 0:02:55]}  Bb4 {[%clk 0:02:24]} 6. Ne2 {[%clk 0:02:55]}  c5 {[%clk 0:02:21]} 7. a3 {[%clk 0:02:53]}  cxd4 {[%clk 0:02:09]} 8. axb4 {[%clk 0:02:44]}  dxc3 {[%clk 0:02:09]} 9. Nxc3 {[%clk 0:02:45]}  O-O {[%clk 0:02:01]} 10. g5 {[%clk 0:02:44]}  Nfd7 {[%clk 0:02:00]} 11. b5 {[%clk 0:02:43]}  Qe7 {[%clk 0:01:57]} 12. Bg2 {[%clk 0:02:37]}  Nb6 {[%clk 0:01:53]} 13. O-O {[%clk 0:02:29]}  N8d7 {[%clk 0:01:50]} 14. h4 {[%clk 0:02:28]}  Nc5 {[%clk 0:01:22]} 15. Qd4 {[%clk 0:02:22]}  Nc4 {[%clk 0:01:10]} 16. b3 {[%clk 0:02:15]}  Nb6 {[%clk 0:01:06]} 17. e4 {[%clk 0:02:02]}  Re8 {[%clk 0:00:56]} 18. exd5 {[%clk 0:01:49]}  e5 {[%clk 0:00:56]} 19. Bxe5 {[%clk 0:01:46]}  Qxe5 {[%clk 0:00:57]} 20. Qxc5 {[%clk 0:01:47]}  Nd7 {[%clk 0:00:55]} 21. Qe3 {[%clk 0:01:44]}  Qxe3 {[%clk 0:00:54]} 22. fxe3 {[%clk 0:01:45]}  Rxe3 {[%clk 0:00:49]} 23. Ne4 {[%clk 0:01:44]}  Ne5 {[%clk 0:00:50]} 24. b6 {[%clk 0:01:35]}  Bd7 {[%clk 0:00:48]} 25. Rae1 {[%clk 0:01:33]}  Rxe1 {[%clk 0:00:43]} 26. Rxe1 {[%clk 0:01:34]}  Kf8 {[%clk 0:00:37]} 27. Nc5 {[%clk 0:01:26]}  Rc8 {[%clk 0:00:37]} 28. b4 {[%clk 0:01:24]}  f6 {[%clk 0:00:36]} 29. d6 {[%clk 0:01:20]}  Bc6 {[%clk 0:00:36]} 30. Bxc6 {[%clk 0:01:17]}  Rxc6 {[%clk 0:00:37]} 31. d7 {[%clk 0:01:13]}  Ke7 {[%clk 0:00:35]} 32. Rd1 {[%clk 0:01:13]}  Nf7 {[%clk 0:00:28]} 33. Nxb7 {[%clk 0:01:09]}  Nd8 {[%clk 0:00:27]} 34. Re1+ {[%clk 0:01:09]}  Re6 {[%clk 0:00:28]} 35. Rxe6+ {[%clk 0:01:08]}  Nxe6 {[%clk 0:00:28]} 36. gxf6+ {[%clk 0:01:06]}  gxf6 {[%clk 0:00:28]} 37. d8=Q+ {[%clk 0:01:02]}  Nxd8 {[%clk 0:00:28]} 38. Nxd8 {[%clk 0:01:03]}  Kxd8 {[%clk 0:00:28]} 39. c4 {[%clk 0:01:04]}  Kd7 {[%clk 0:00:28]} 40. c5 {[%clk 0:01:04]}  Kc6 {[%clk 0:00:28]} 41. Kf2 {[%clk 0:01:05]} 1-0


[Site "https://www.chess.com"]

[Event "Titled Tuesday Blitz March 15 Late 2022"]
[White "Olsen, Filip Boe"]
[Black "Hoffmann, Asa"]
[WhiteFideId "1440640"]
[BlackFideId "2001470"]
[WhiteElo "2188"]
[BlackElo "2117"]
[Result "0-1"]
[Round "08"]
[TimeControl "180+1"]
[Date "2022.03.16"]
[WhiteClock "0:00:16"]
[BlackClock "0:01:13"]

1. d4 {[%clk 0:03:00]}  Nf6 {[%clk 0:02:59]} 2. Nf3 {[%clk 0:02:57]}  d6 {[%clk 0:02:58]} 3. g3 {[%clk 0:02:57]}  c6 {[%clk 0:02:57]} 4. Bg2 {[%clk 0:02:58]}  Bf5 {[%clk 0:02:56]} 5. O-O {[%clk 0:02:58]}  h6 {[%clk 0:02:56]} 6. b3 {[%clk 0:02:57]}  Nbd7 {[%clk 0:02:56]} 7. Bb2 {[%clk 0:02:57]}  Qc7 {[%clk 0:02:56]} 8. Nbd2 {[%clk 0:02:57]}  e6 {[%clk 0:02:56]} 9. Re1 {[%clk 0:02:58]}  d5 {[%clk 0:02:55]} 10. Ne5 {[%clk 0:02:49]}  Bd6 {[%clk 0:02:50]} 11. f4 {[%clk 0:02:36]}  Bxe5 {[%clk 0:02:49]} 12. dxe5 {[%clk 0:02:32]}  Ne4 {[%clk 0:02:38]} 13. Nxe4 {[%clk 0:02:26]}  dxe4 {[%clk 0:02:37]} 14. Qd6 {[%clk 0:02:17]}  Qxd6 {[%clk 0:02:32]} 15. exd6 {[%clk 0:02:17]}  f6 {[%clk 0:02:32]} 16. Rad1 {[%clk 0:02:17]}  O-O-O {[%clk 0:02:31]} 17. Rd4 {[%clk 0:02:16]}  Nb6 {[%clk 0:02:25]} 18. Ba3 {[%clk 0:02:10]}  Nd5 {[%clk 0:02:20]} 19. c4 {[%clk 0:02:06]}  Ne3 {[%clk 0:02:11]} 20. Bxe4 {[%clk 0:02:04]}  Bxe4 {[%clk 0:02:09]} 21. Rxe4 {[%clk 0:02:03]}  Nc2 {[%clk 0:02:08]} 22. Rd1 {[%clk 0:01:28]}  Nxa3 {[%clk 0:02:07]} 23. Rxe6 {[%clk 0:01:28]}  Rd7 {[%clk 0:01:57]} 24. Kf2 {[%clk 0:01:27]}  Rhd8 {[%clk 0:01:52]} 25. e4 {[%clk 0:01:27]}  Nc2 {[%clk 0:01:41]} 26. Rd2 {[%clk 0:01:24]}  Nb4 {[%clk 0:01:40]} 27. a3 {[%clk 0:01:25]}  Na6 {[%clk 0:01:39]} 28. b4 {[%clk 0:01:25]}  b6 {[%clk 0:01:36]} 29. Ke3 {[%clk 0:01:20]}  Nb8 {[%clk 0:01:35]} 30. h4 {[%clk 0:01:15]}  h5 {[%clk 0:01:31]} 31. a4 {[%clk 0:00:31]}  Na6 {[%clk 0:01:27]} 32. a5 {[%clk 0:00:18]}  Nxb4 {[%clk 0:01:23]} 33. axb6 {[%clk 0:00:18]}  axb6 {[%clk 0:01:24]} 34. Rb2 {[%clk 0:00:19]}  c5 {[%clk 0:01:23]} 35. e5 {[%clk 0:00:18]}  Kb7 {[%clk 0:01:19]} 36. Rb1 {[%clk 0:00:16]}  Nc2+ {[%clk 0:01:14]} 37. Ke4 {[%clk 0:00:16]}  Nd4 {[%clk 0:01:14]} 38. Re7 {[%clk 0:00:17]}  Kc6 {[%clk 0:01:13]} 39. Rxd7 {[%clk 0:00:16]}  Rxd7 {[%clk 0:01:13]} 40. Ra1 {[%clk 0:00:16]}  f5+ {[%clk 0:01:13]} 41. Ke3 {[%clk 0:00:16]}  Nc2+ {[%clk 0:01:13]} 0-1


[Site "https://www.chess.com"]

[Event "Titled Tuesday Blitz March 15 Late 2022"]
[White "Paravyan, David"]
[Black "Suleymanli, Aydin"]
[WhiteFideId "4194985"]
[BlackFideId "13413937"]
[WhiteElo "2569"]
[BlackElo "2481"]
[Result "1-0"]
[Round "08"]
[TimeControl "180+1"]
[Date "2022.03.15"]
[WhiteClock "0:00:09"]
[BlackClock "0:00:03"]

1. e4 {[%clk 0:03:00]}  c5 {[%clk 0:02:57]} 2. Nf3 {[%clk 0:03:01]}  Nc6 {[%clk 0:02:56]} 3. d4 {[%clk 0:03:01]}  cxd4 {[%clk 0:02:56]} 4. Nxd4 {[%clk 0:03:02]}  Nf6 {[%clk 0:02:56]} 5. Nc3 {[%clk 0:03:03]}  e6 {[%clk 0:02:56]} 6. Nxc6 {[%clk 0:03:03]}  bxc6 {[%clk 0:02:57]} 7. e5 {[%clk 0:03:03]}  Nd5 {[%clk 0:02:58]} 8. Ne4 {[%clk 0:03:04]}  Qc7 {[%clk 0:02:58]} 9. f4 {[%clk 0:03:03]}  f5 {[%clk 0:02:58]} 10. exf6 {[%clk 0:03:03]}  gxf6 {[%clk 0:02:58]} 11. Bd2 {[%clk 0:03:03]}  f5 {[%clk 0:02:53]} 12. Qh5+ {[%clk 0:03:03]}  Kd8 {[%clk 0:02:52]} 13. Ng5 {[%clk 0:03:04]}  Qb6 {[%clk 0:02:53]} 14. Nf7+ {[%clk 0:03:01]}  Kc7 {[%clk 0:02:52]} 15. Nxh8 {[%clk 0:03:01]}  Qxb2 {[%clk 0:02:51]} 16. Rd1 {[%clk 0:02:57]}  Qxh8 {[%clk 0:02:51]} 17. Ba5+ {[%clk 0:02:50]}  Nb6 {[%clk 0:02:50]} 18. Qf3 {[%clk 0:02:46]}  Qb2 {[%clk 0:02:47]} 19. Bd3 {[%clk 0:02:37]}  Bc5 {[%clk 0:02:39]} 20. Qe2 {[%clk 0:02:28]}  Qxa2 {[%clk 0:02:15]} 21. Qe5+ {[%clk 0:02:14]}  d6 {[%clk 0:02:08]} 22. Qc3 {[%clk 0:01:58]}  Bd7 {[%clk 0:01:55]} 23. Be2 {[%clk 0:01:00]}  Rg8 {[%clk 0:01:42]} 24. g3 {[%clk 0:01:00]}  Qa3 {[%clk 0:01:33]} 25. Qxa3 {[%clk 0:00:58]}  Bxa3 {[%clk 0:01:34]} 26. Kd2 {[%clk 0:00:40]}  Bc5 {[%clk 0:01:29]} 27. Ra1 {[%clk 0:00:40]}  Bc8 {[%clk 0:01:24]} 28. Rhb1 {[%clk 0:00:37]}  Bb7 {[%clk 0:01:22]} 29. Bb4 {[%clk 0:00:37]}  Bxb4+ {[%clk 0:01:18]} 30. Rxb4 {[%clk 0:00:38]}  Ra8 {[%clk 0:01:18]} 31. Ra5 {[%clk 0:00:35]}  Nd5 {[%clk 0:01:14]} 32. Rba4 {[%clk 0:00:34]}  a6 {[%clk 0:00:56]} 33. Bxa6 {[%clk 0:00:19]}  Kb6 {[%clk 0:00:53]} 34. Bxb7 {[%clk 0:00:19]}  Rxa5 {[%clk 0:00:53]} 35. Rxa5 {[%clk 0:00:18]}  Kxa5 {[%clk 0:00:54]} 36. Bxc6 {[%clk 0:00:18]}  Nf6 {[%clk 0:00:54]} 37. Kd3 {[%clk 0:00:15]}  Kb6 {[%clk 0:00:54]} 38. Ba4 {[%clk 0:00:14]}  Kc5 {[%clk 0:00:54]} 39. c3 {[%clk 0:00:08]}  d5 {[%clk 0:00:54]} 40. Bd1 {[%clk 0:00:07]}  Ne4 {[%clk 0:00:45]} 41. Bf3 {[%clk 0:00:07]}  Nf6 {[%clk 0:00:42]} 42. h3 {[%clk 0:00:01]}  Ne4 {[%clk 0:00:42]} 43. g4 {[%clk 0:00:02]}  Nf2+ {[%clk 0:00:34]} 44. Ke3 {[%clk 0:00:02]}  Ne4 {[%clk 0:00:25]} 45. g5 {[%clk 0:00:02]}  Nxc3 {[%clk 0:00:25]} 46. h4 {[%clk 0:00:02]}  Nb5 {[%clk 0:00:23]} 47. h5 {[%clk 0:00:02]}  Nd6 {[%clk 0:00:20]} 48. h6 {[%clk 0:00:03]}  d4+ {[%clk 0:00:16]} 49. Kd3 {[%clk 0:00:03]}  e5 {[%clk 0:00:16]} 50. Bh5 {[%clk 0:00:02]}  e4+ {[%clk 0:00:12]} 51. Kd2 {[%clk 0:00:02]}  Nc4+ {[%clk 0:00:04]} 52. Ke1 {[%clk 0:00:03]}  d3 {[%clk 0:00:04]} 53. g6 {[%clk 0:00:04]}  hxg6 {[%clk 0:00:04]} 54. h7 {[%clk 0:00:04]}  gxh5 {[%clk 0:00:04]} 55. h8=Q {[%clk 0:00:05]}  e3 {[%clk 0:00:03]} 56. Qc3 {[%clk 0:00:03]}  d2+ {[%clk 0:00:01]} 57. Ke2 {[%clk 0:00:04]}  Kd5 {[%clk 0:00:02]} 58. Qd3+ {[%clk 0:00:05]}  Kc5 {[%clk 0:00:03]} 59. Qxf5+ {[%clk 0:00:05]}  Kb4 {[%clk 0:00:03]} 60. Qe4 {[%clk 0:00:05]}  h4 {[%clk 0:00:03]} 61. f5 {[%clk 0:00:06]}  h3 {[%clk 0:00:04]} 62. f6 {[%clk 0:00:07]}  h2 {[%clk 0:00:05]} 63. f7 {[%clk 0:00:07]}  Kc3 {[%clk 0:00:05]} 64. f8=Q {[%clk 0:00:08]}  d1=Q+ {[%clk 0:00:02]} 65. Kxd1 {[%clk 0:00:08]}  h1=Q+ {[%clk 0:00:02]} 66. Qxh1 {[%clk 0:00:09]}  e2+ {[%clk 0:00:03]} 67. Ke1 {[%clk 0:00:09]} 1-0


[Site "https://www.chess.com"]

[Event "Titled Tuesday Blitz March 15 Late 2022"]
[White "Plazuelo Pascual, Juan"]
[Black "Curtis, John"]
[WhiteFideId "32059566"]
[BlackFideId "3200256"]
[WhiteElo "2364"]
[BlackElo "2203"]
[Result "1-0"]
[Round "08"]
[TimeControl "180+1"]
[Date "2022.03.16"]
[WhiteClock "0:00:40"]
[BlackClock "0:00:01"]

1. Nf3 {[%clk 0:03:00]}  Nf6 {[%clk 0:02:59]} 2. g3 {[%clk 0:03:00]}  d5 {[%clk 0:02:53]} 3. Bg2 {[%clk 0:03:01]}  c6 {[%clk 0:02:49]} 4. O-O {[%clk 0:03:01]}  Bg4 {[%clk 0:02:42]} 5. b3 {[%clk 0:03:01]}  Bxf3 {[%clk 0:02:36]} 6. Bxf3 {[%clk 0:03:01]}  Nbd7 {[%clk 0:02:35]} 7. Bb2 {[%clk 0:02:54]}  e6 {[%clk 0:02:35]} 8. c4 {[%clk 0:02:47]}  Be7 {[%clk 0:02:30]} 9. d3 {[%clk 0:02:46]}  O-O {[%clk 0:02:29]} 10. Nd2 {[%clk 0:02:46]}  a5 {[%clk 0:02:24]} 11. a3 {[%clk 0:02:46]}  Qb6 {[%clk 0:02:04]} 12. Rc1 {[%clk 0:02:42]}  Rfd8 {[%clk 0:02:04]} 13. Rc2 {[%clk 0:02:41]}  Bc5 {[%clk 0:01:57]} 14. Qa1 {[%clk 0:02:36]}  Qc7 {[%clk 0:01:47]} 15. cxd5 {[%clk 0:02:31]}  exd5 {[%clk 0:01:39]} 16. Bxf6 {[%clk 0:02:31]}  gxf6 {[%clk 0:01:38]} 17. d4 {[%clk 0:02:31]}  Bf8 {[%clk 0:01:35]} 18. Bxd5 {[%clk 0:02:29]}  Qd6 {[%clk 0:01:31]} 19. Bg2 {[%clk 0:02:28]}  Qxa3 {[%clk 0:01:29]} 20. Qc3 {[%clk 0:02:24]}  Bb4 {[%clk 0:01:19]} 21. Qf3 {[%clk 0:02:16]}  Bxd2 {[%clk 0:01:19]} 22. Rxd2 {[%clk 0:02:15]}  a4 {[%clk 0:01:11]} 23. Qg4+ {[%clk 0:02:08]}  Kh8 {[%clk 0:01:00]} 24. bxa4 {[%clk 0:02:09]}  Qxa4 {[%clk 0:00:45]} 25. Be4 {[%clk 0:02:09]}  Nf8 {[%clk 0:00:35]} 26. Qf4 {[%clk 0:02:08]}  Kg7 {[%clk 0:00:31]} 27. Qg4+ {[%clk 0:02:08]}  Ng6 {[%clk 0:00:24]} 28. h4 {[%clk 0:02:06]}  Rxd4 {[%clk 0:00:23]} 29. Rxd4 {[%clk 0:02:02]}  Qxd4 {[%clk 0:00:24]} 30. h5 {[%clk 0:02:02]}  Ra4 {[%clk 0:00:22]} 31. h6+ {[%clk 0:01:16]}  Kxh6 {[%clk 0:00:19]} 32. Qh3+ {[%clk 0:01:16]}  Kg7 {[%clk 0:00:19]} 33. Bf5 {[%clk 0:01:14]}  Ra1 {[%clk 0:00:18]} 34. e3 {[%clk 0:01:11]}  Rxf1+ {[%clk 0:00:17]} 35. Qxf1 {[%clk 0:01:12]}  Qd5 {[%clk 0:00:17]} 36. Qb1 {[%clk 0:01:11]}  Ne5 {[%clk 0:00:16]} 37. Be4 {[%clk 0:01:05]}  Qd2 {[%clk 0:00:16]} 38. Qxb7 {[%clk 0:01:00]}  Ng4 {[%clk 0:00:15]} 39. Kg2 {[%clk 0:00:38]}  Qxf2+ {[%clk 0:00:14]} 40. Kh3 {[%clk 0:00:39]}  h5 {[%clk 0:00:12]} 41. Bg2 {[%clk 0:00:39]}  Nxe3 {[%clk 0:00:08]} 42. Bxc6 {[%clk 0:00:39]}  Qf1+ {[%clk 0:00:05]} 43. Kh4 {[%clk 0:00:40]}  Kg6 {[%clk 0:00:01]} 44. Be4+ {[%clk 0:00:39]}  f5 {[%clk 0:00:01]} 45. Qc6+ {[%clk 0:00:39]}  Kg7 {[%clk 0:00:01]} 46. Qc3+ {[%clk 0:00:39]}  Kh7 {[%clk 0:00:01]} 47. Qxe3 {[%clk 0:00:40]} 1-0


[Site "https://www.chess.com"]

[Event "Titled Tuesday Blitz March 15 Late 2022"]
[White "Reprintsev, Alexander"]
[Black "Zhurbinsky, David"]
[WhiteFideId "14100541"]
[BlackFideId "2072904"]
[WhiteElo "2108"]
[BlackElo "2585"]
[Result "0-1"]
[Round "08"]
[TimeControl "180+1"]
[Date "2022.03.16"]
[WhiteClock "0:00:13"]
[BlackClock "0:00:10"]

1. e4 {[%clk 0:03:00]}  e5 {[%clk 0:02:59]} 2. f4 {[%clk 0:02:59]}  exf4 {[%clk 0:02:59]} 3. Bc4 {[%clk 0:02:58]}  Qh4+ {[%clk 0:02:57]} 4. Kf1 {[%clk 0:02:58]}  Nf6 {[%clk 0:02:53]} 5. Nf3 {[%clk 0:02:57]}  Qh5 {[%clk 0:02:53]} 6. Qe1 {[%clk 0:02:53]}  d5 {[%clk 0:02:31]} 7. exd5+ {[%clk 0:02:45]}  Be7 {[%clk 0:02:31]} 8. d4 {[%clk 0:02:43]}  Bg4 {[%clk 0:02:29]} 9. Ne5 {[%clk 0:02:25]}  f3 {[%clk 0:02:23]} 10. h3 {[%clk 0:02:23]}  fxg2+ {[%clk 0:02:18]} 11. Kxg2 {[%clk 0:02:23]}  Bf5 {[%clk 0:02:15]} 12. Be2 {[%clk 0:02:11]}  Be4+ {[%clk 0:02:05]} 13. Kh2 {[%clk 0:02:10]}  Qf5 {[%clk 0:01:59]} 14. Rf1 {[%clk 0:02:09]}  Qc8 {[%clk 0:01:54]} 15. Nc3 {[%clk 0:02:07]}  Bf5 {[%clk 0:01:41]} 16. Qf2 {[%clk 0:01:50]}  Bxh3 {[%clk 0:01:37]} 17. Rg1 {[%clk 0:01:48]}  Qf5 {[%clk 0:01:24]} 18. Bf4 {[%clk 0:01:34]}  Bd6 {[%clk 0:01:14]} 19. Rxg7 {[%clk 0:01:26]}  Nbd7 {[%clk 0:01:11]} 20. Bg3 {[%clk 0:01:04]}  O-O-O {[%clk 0:00:42]} 21. Qxf5 {[%clk 0:01:01]}  Bxf5 {[%clk 0:00:42]} 22. Nxf7 {[%clk 0:01:01]}  Bxg3+ {[%clk 0:00:41]} 23. Kxg3 {[%clk 0:01:01]}  Rhg8 {[%clk 0:00:40]} 24. Rxg8 {[%clk 0:01:00]}  Rxg8+ {[%clk 0:00:41]} 25. Kf4 {[%clk 0:00:59]}  Bxc2 {[%clk 0:00:39]} 26. Rh1 {[%clk 0:00:54]}  Nb6 {[%clk 0:00:33]} 27. Bf3 {[%clk 0:00:47]}  Rf8 {[%clk 0:00:31]} 28. Ng5 {[%clk 0:00:41]}  Nfxd5+ {[%clk 0:00:29]} 29. Kg3 {[%clk 0:00:41]}  Ne3 {[%clk 0:00:20]} 30. Bg4+ {[%clk 0:00:20]}  Nxg4 {[%clk 0:00:18]} 31. Kxg4 {[%clk 0:00:21]}  Nc4 {[%clk 0:00:16]} 32. b3 {[%clk 0:00:20]}  Ne3+ {[%clk 0:00:15]} 33. Kg3 {[%clk 0:00:20]}  Nf5+ {[%clk 0:00:15]} 34. Kg4 {[%clk 0:00:20]}  Nxd4 {[%clk 0:00:16]} 35. Nd5 {[%clk 0:00:19]}  c6 {[%clk 0:00:13]} 36. Ne3 {[%clk 0:00:16]}  Bd3 {[%clk 0:00:10]} 37. Nxh7 {[%clk 0:00:15]}  Be2+ {[%clk 0:00:09]} 38. Kg5 {[%clk 0:00:14]}  Ne6+ {[%clk 0:00:09]} 39. Kg6 {[%clk 0:00:14]}  Bd3+ {[%clk 0:00:09]} 40. Kh6 {[%clk 0:00:13]}  Rh8 {[%clk 0:00:10]} 0-1


[Site "https://www.chess.com"]